bitfinex/quotes_SOLUSD_20250402
["timestamp","ask_amount","ask_price","bid_price","bid_amount"]
[1743568935924,0.063,124.56,124.55,6.84]
[1743568938449,0.063,124.56,124.53,99.69181043]
[1743568938732,0.063,124.56,124.54,6.84]
[1743568939308,0.063,124.56,124.52,231.1]
[1743568939523,1.6618,124.56,124.51,0.03]
[1743568939734,16.07974192,124.55,124.51,6.87]
[1743568940535,8.0308,124.52,124.51,0.03]
[1743568942232,28.1078,124.52,124.48,87.74]
[1743568942436,28.1078,124.52,124.48,6.84]
[1743568942731,44.18754192,124.52,124.47,0.0001]
[1743568942913,44.18754192,124.52,124.47,6.8401]
[1743568943110,28.1078,124.52,124.47,6.8401]
[1743568943841,44.18754192,124.52,124.47,6.8401]
[1743568944012,44.18754192,124.52,124.47,0.0001]
[1743568944209,22.58754192,124.51,124.47,0.0001]
[1743568944510,17.62464192,124.5,124.47,0.0001]
[1743568945644,17.62464192,124.5,124.44,0.03]
[1743568945645,8.0347,124.46,124.44,0.03]
[1743568945811,24.11444192,124.46,124.44,0.03]
[1743568946110,8.0347,124.46,124.44,0.03]
[1743568947051,9.5791,124.47,124.44,0.03]
[1743568950815,29.6642,124.47,124.44,0.03]
[1743568954118,45.74394192,124.47,124.44,0.03]
[1743568955954,29.6642,124.47,124.44,0.03]
[1743568969454,28.1193,124.47,124.44,0.03]
[1743568971545,68.2803,124.49,124.44,0.03]
[1743568971753,28.1146,124.49,124.44,0.03]
[1743568975643,28.1776,124.49,124.44,0.03]
[1743568978032,44.25734192,124.49,124.44,0.03]
[1743568978233,28.1776,124.49,124.44,0.03]
[1743568978751,44.25734192,124.49,124.44,0.03]
[1743568980846,84.42114192,124.49,124.44,0.03]
[1743568983457,16.07974192,124.48,124.44,0.03]
[1743568983753,84.42114192,124.49,124.44,0.03]
[1743568984464,28.1776,124.49,124.44,0.03]
[1743568991751,44.25734192,124.49,124.44,0.03]
[1743568992147,28.1776,124.49,124.44,0.03]
[1743568998979,8.0957,124.49,124.44,18.82181043]
[1743569004559,28.1776,124.49,124.44,0.03]
[1743569018485,44.25734192,124.49,124.44,0.03]
[1743569018681,28.1776,124.49,124.44,0.03]
[1743569034814,28.1776,124.49,124.45,6.84]
[1743569037322,8.0957,124.49,124.45,6.84]
[1743569037623,0.063,124.49,124.46,18.79181043]
[1743569044127,0.063,124.49,124.45,93.8403]
[1743569044330,0.063,124.49,124.45,80.9]
[1743569044722,0.063,124.49,124.46,18.79181043]
[1743569046520,0.063,124.49,124.46,18.82181043]
[1743569055636,0.063,124.49,124.46,25.66181043]
[1743569055830,0.063,124.49,124.46,6.87]
[1743569057144,8.0957,124.49,124.46,6.87]
[1743569059546,28.1776,124.49,124.46,6.87]
[1743569063950,8.0957,124.49,124.46,6.87]
[1743569067352,0.063,124.49,124.46,6.87]
[1743569071253,0.063,124.49,124.46,0.03]
[1743569072152,8.0957,124.49,124.46,0.03]
[1743569072457,28.1776,124.49,124.46,0.03]
[1743569073057,29.7594,124.49,124.46,0.03]
[1743569078049,16.07974192,124.48,124.46,0.03]
[1743569078240,24.11374192,124.47,124.46,0.03]
[1743569080165,8.034,124.47,124.46,0.03]
[1743569080464,24.11374192,124.47,124.46,0.03]
[1743569081453,44.19884192,124.47,124.44,0.03]
[1743569082257,44.19884192,124.47,124.46,0.03]
[1743569089766,44.19884192,124.47,124.44,0.0001]
[1743569089970,16.07974192,124.45,124.44,0.0001]
[1743569090560,24.11504192,124.45,124.44,0.0001]
[1743569091279,8.0353,124.45,124.44,0.0001]
[1743569092468,24.11504192,124.45,124.44,0.0001]
[1743569096773,8.0353,124.45,124.44,0.0001]
[1743569100868,8.0334,124.48,124.44,0.0001]
[1743569102177,28.178,124.49,124.44,0.0001]
[1743569102781,44.25774192,124.49,124.44,0.0001]
[1743569106578,16.07974192,124.48,124.44,0.0001]
[1743569108672,8.034,124.47,124.44,0.0001]
[1743569109981,0.063,124.49,124.44,0.0001]
[1743569110358,0.063,124.49,124.44,0.14226157]
[1743569110673,0.063,124.49,124.44,18.79191043]
[1743569112062,8.0957,124.49,124.44,18.79191043]
[1743569112855,16.07974192,124.48,124.44,0.0001]
[1743569115081,8.034,124.47,124.44,0.0001]
[1743569117793,28.1169,124.48,124.44,0.0001]
[1743569117968,44.19664192,124.48,124.44,0.0001]
[1743569118682,16.07974192,124.47,124.44,0.0001]
[1743569120381,8.0347,124.46,124.44,0.0001]
[1743569122165,36.16324192,124.48,124.44,0.0001]
[1743569124887,44.19664192,124.48,124.44,0.0001]
[1743569126467,28.1169,124.48,124.44,0.0001]
[1743569129386,8.0964,124.48,124.44,0.0001]
[1743569129869,7.5964,124.48,124.44,0.0001]
[1743569131295,0.063,124.48,124.44,6.4805]
[1743569135189,0.063,124.48,124.45,18.79181043]
[1743569135779,0.063,124.48,124.46,20.14216157]
[1743569135986,0.063,124.48,124.47,25.63181043]
[1743569142295,0.063,124.48,124.47,122.430372]
[1743569145884,0.063,124.48,124.47,112.74031043]
[1743569146197,0.063,124.48,124.47,112.76031043]
[1743569147403,0.063,124.48,124.47,105.90031043]
[1743569147706,0.063,124.48,124.47,112.76031043]
[1743569150408,0.063,124.48,124.47,120.79431043]
[1743569152010,0.063,124.48,124.47,120.936472]
[1743569153009,0.063,124.48,124.47,120.966472]
[1743569156104,0.063,124.49,124.48,38.79181043]
[1743569156292,0.063,124.49,124.48,46.82521043]
[1743569158595,0.063,124.49,124.48,46.967372]
[1743569159106,0.063,124.49,124.48,127.867372]
[1743569161398,0.063,124.49,124.48,129.491572]
[1743569161812,0.063,124.56,124.52,18.933972]
[1743569161998,0.063,124.56,124.53,6.84]
[1743569162720,16.14274192,124.56,124.53,6.84]
[1743569163622,8.0289,124.55,124.53,6.84]
[1743569167527,44.18084192,124.55,124.52,80.9]
[1743569167703,17.62724192,124.54,124.51,6.84]
[1743569167898,16.07974192,124.53,124.48,99.72181043]
[1743569168103,16.07974192,124.52,124.48,80.93]
[1743569168335,16.07974192,124.52,124.49,6.84]
[1743569168702,8.0314,124.51,124.49,6.84]
[1743569169798,28.1101,124.51,124.49,6.84]
[1743569169999,44.18984192,124.51,124.49,6.84]
[1743569170303,17.64314192,124.5,124.48,0.03]
[1743569170504,16.07974192,124.49,124.48,0.03]
[1743569170718,24.11244192,124.49,124.48,0.03]
[1743569174219,25.67544192,124.5,124.48,0.03]
[1743569174433,1.5634,124.5,124.48,0.03]
[1743569174620,8.031,124.52,124.48,0.03]
[1743569174926,8.031,124.52,124.49,6.84]
[1743569177020,24.11074192,124.52,124.49,6.84]
[1743569178216,24.17374192,124.52,124.49,6.84]
[1743569180742,16.07974192,124.51,124.49,6.84]
[1743569182729,8.0321,124.5,124.49,6.84]
[1743569186739,44.25054192,124.52,124.49,6.84]
[1743569190333,44.25054192,124.52,124.49,6.87]
[1743569192445,8.0321,124.5,124.49,6.87]
[1743569193551,44.25054192,124.52,124.49,6.87]
[1743569196652,8.0938,124.52,124.49,6.87]
[1743569196836,0.063,124.52,124.49,20.9806]
[1743569197152,0.063,124.52,124.5,18.79181043]
[1743569197951,0.063,124.52,124.51,38.933972]
[1743569198252,0.063,124.52,124.51,127.865372]
[1743569208258,0.063,124.56,124.55,20.14216157]
[1743569208577,0.063,124.56,124.55,45.63181043]
[1743569209848,0.063,124.56,124.55,69.74243612]
[1743569211079,0.063,124.56,124.55,77.77133612]
[1743569211774,0.063,124.56,124.55,158.67133612]
[1743569213476,0.063,124.6,124.56,18.64964886]
[1743569218183,0.063,124.6,124.57,0.14216157]
[1743569220279,0.063,124.6,124.57,8.16956157]
[1743569220856,0.063,124.6,124.58,18.64964886]
[1743569221177,0.063,124.6,124.59,27.12432314]
[1743569222143,0.063,124.6,124.59,53.800272]
[1743569225148,0.063,124.6,124.59,45.773972]
[1743569226350,0.063,124.6,124.59,126.673972]
[1743569230889,0.063,124.6,124.59,119.833972]
[1743569231092,0.063,124.6,124.59,126.673972]
[1743569236080,0.063,124.6,124.59,106.53181043]
[1743569238959,0.063,124.6,124.59,126.673972]
[1743569241160,0.063,124.6,124.59,134.700272]
[1743569241765,0.063,124.61,124.6,18.933972]
[1743569242679,0.063,124.61,124.6,26.959572]
[1743569246686,0.063,124.61,124.6,8.30992314]
[1743569246872,0.063,124.61,124.6,107.859572]
[1743569248476,0.063,124.61,124.6,99.69181043]
[1743569248663,0.063,124.61,124.6,106.53181043]
[1743569250287,0.063,124.61,124.6,87.88216157]
[1743569250683,0.063,124.61,124.6,106.53181043]
[1743569253394,0.063,124.61,124.6,99.69181043]
[1743569253573,0.063,124.61,124.6,106.53181043]
[1743569263104,0.063,124.61,124.6,87.88216157]
[1743569263277,0.063,124.61,124.6,106.53181043]
[1743569263801,0.063,124.61,124.6,106.59481043]
[1743569264606,0.063,124.62,124.61,38.79181043]
[1743569266608,0.063,124.62,124.61,46.81681043]
[1743569269018,0.063,124.62,124.61,127.858972]
[1743569269191,0.063,124.63,124.62,99.770972]
[1743569269693,0.063,124.66,124.63,38.933972]
[1743569269893,0.063,124.66,124.64,25.773972]
[1743569270298,0.063,124.66,124.65,38.933972]
[1743569270501,0.063,124.66,124.65,119.770972]
[1743569271207,0.063,124.66,124.65,127.793372]
[1743569271799,0.063,124.67,124.65,127.793372]
[1743569272886,0.063,124.67,124.65,157.793372]
[1743569275987,0.063,124.67,124.65,127.793372]
[1743569278112,0.063,124.67,124.65,119.770972]
[1743569280287,0.063,124.67,124.66,25.61181043]
[1743569281688,0.063,124.67,124.65,80.837]
[1743569281895,0.063,124.67,124.65,87.657]
[1743569282194,1.5583,124.66,124.65,80.837]
[1743569283214,0.063,124.67,124.65,38.933972]
[1743569286924,0.063,124.67,124.64,6.82]
[1743569287097,0.063,124.67,124.65,6.82]
[1743569288393,0.063,124.67,124.65,6.883]
[1743569296220,0.063,124.67,124.66,18.79181043]
[1743569296722,0.063,124.67,124.66,99.770972]
[1743569298321,0.063,124.67,124.66,107.792772]
[1743569298526,0.063,124.67,124.66,99.770972]
[1743569301331,0.063,124.67,124.66,99.833972]
[1743569305425,0.063,124.67,124.66,107.855772]
[1743569309015,0.063,124.67,124.66,114.15008175]
[1743569313246,0.063,124.67,124.66,99.833972]
[1743569313624,0.063,124.67,124.66,106.653972]
[1743569314449,0.063,124.67,124.66,106.51181043]
[1743569320134,0.063,124.67,124.66,87.86216157]
[1743569324365,0.063,124.67,124.66,87.72]
[1743569324845,0.063,124.67,124.66,80.9]
[1743569325052,0.063,124.67,124.66,6.883]
[1743569325256,0.063,124.67,124.66,0.063]
[1743569326340,8.0841,124.67,124.66,0.063]
[1743569334763,8.0841,124.67,124.65,6.883]
[1743569334965,8.0841,124.67,124.65,0.063]
[1743569337058,8.0841,124.67,124.66,0.063]
[1743569343655,0.063,124.67,124.66,0.063]
[1743569353782,0.063,124.67,124.66,6.883]
[1743569354784,0.063,124.67,124.66,0.063]
[1743569361906,17.65754192,124.67,124.66,0.0001]
[1743569362200,17.65754192,124.67,124.62,6.82]
[1743569362382,44.15604192,124.66,124.62,6.82]
[1743569363993,28.0763,124.66,124.62,6.82]
[1743569364383,8.0218,124.66,124.62,6.82]
[1743569364700,8.0218,124.66,124.63,18.79181043]
[1743569365000,8.0844,124.67,124.63,18.79181043]
[1743569367003,0.063,124.67,124.63,18.79181043]
[1743569374201,16.14274192,124.67,124.62,80.837]
[1743569374372,16.14274192,124.67,124.63,6.883]
[1743569374580,17.64374192,124.66,124.63,6.883]
[1743569376101,8.0224,124.65,124.63,6.883]
[1743569382905,8.0224,124.65,124.63,0.063]
[1743569402926,0.063,124.67,124.63,18.85481043]
[1743569403293,0.063,124.67,124.64,6.1215]
[1743569403516,0.063,124.67,124.65,38.933972]
[1743569403711,0.063,124.67,124.66,6.96216157]
[1743569404895,0.063,124.67,124.66,6.82]
[1743569413723,0.063,124.67,124.66,25.61181043]
[1743569419530,0.063,124.67,124.66,25.753972]
[1743569419707,0.063,124.67,124.66,53.775772]
[1743569419906,0.063,124.67,124.66,134.612772]
[1743569420125,0.063,124.67,124.66,126.590972]
[1743569420627,0.063,124.67,124.66,134.612772]
[1743569424937,0.063,124.67,124.66,126.590972]
[1743569425148,0.063,124.67,124.66,106.44881043]
[1743569425347,0.063,124.67,124.66,80.837]
[1743569425637,0.063,124.67,124.65,0.063]
[1743569426137,16.14274192,124.67,124.65,0.063]
[1743569427034,16.07974192,124.66,124.65,0.063]
[1743569427237,17.68254192,124.66,124.65,0.063]
[1743569427620,17.68254192,124.66,124.65,0.0001]
[1743569427820,24.32994192,124.66,124.65,0.0001]
[1743569429741,32.35174192,124.66,124.65,0.0001]
[1743569430828,52.40624192,124.66,124.63,0.0001]
[1743569431041,16.07974192,124.64,124.63,0.0001]
[1743569432443,62.81019078,124.64,124.61,0.0001]
[1743569432644,16.07974192,124.62,124.61,0.0001]
[1743569433720,24.10404192,124.62,124.61,0.0001]
[1743569434120,24.10404192,124.62,124.6,0.0001]
[1743569434121,1.6534,124.61,124.6,0.0001]
[1743569434328,17.73314192,124.61,124.6,0.0001]
[1743569435323,36.66711392,124.61,124.6,0.0001]
[1743569435553,43.14291392,124.61,124.6,0.0001]
[1743569435744,131.86791392,124.61,124.6,0.0001]
[1743569436051,132.36791392,124.61,124.6,0.0001]
[1743569436253,131.86791392,124.61,124.6,0.0001]
[1743569436625,20.0,124.58,124.56,0.063]
[1743569436944,16.07974192,124.57,124.56,0.063]
[1743569437750,8.0276,124.57,124.56,0.063]
[1743569437949,1.6534,124.61,124.56,0.063]
[1743569438122,80.7,124.63,124.56,6.883]
[1743569438320,8.0243,124.62,124.56,6.883]
[1743569439953,8.0243,124.62,124.56,14.9108]
[1743569440445,8.0243,124.62,124.57,18.79181043]
[1743569440748,8.024,124.63,124.57,18.79181043]
[1743569441343,8.024,124.63,124.57,99.62881043]
[1743569444262,8.024,124.63,124.57,107.65641043]
[1743569444466,8.024,124.63,124.58,0.14216157]
[1743569444655,8.024,124.63,124.59,18.79181043]
[1743569444827,8.024,124.63,124.6,6.82]
[1743569446027,8.0224,124.65,124.6,6.82]
[1743569447036,28.0785,124.65,124.6,6.82]
[1743569447353,44.15824192,124.65,124.6,6.82]
[1743569448739,16.07974192,124.64,124.6,6.82]
[1743569450162,16.07974192,124.63,124.6,6.82]
[1743569452154,8.0243,124.62,124.6,6.82]
[1743569454664,8.0237,124.63,124.6,6.82]
[1743569458867,28.0808,124.64,124.6,6.883]
[1743569460366,8.0231,124.64,124.6,6.883]
[1743569461373,0.03,124.65,124.6,6.883]
[1743569464582,0.03,124.65,124.63,0.14216157]
[1743569464789,0.03,124.65,124.64,25.61181043]
[1743569465778,0.03,124.65,124.64,6.82]
[1743569467993,0.03,124.65,124.63,25.24874886]
[1743569468166,0.03,124.65,124.64,6.82]
[1743569468568,0.03,124.65,124.62,6.82]
[1743569469092,0.03,124.65,124.6,6.15216047]
[1743569469289,0.03,124.65,124.6,24.80180933]
[1743569470299,8.0524,124.65,124.61,6.82]
[1743569470670,44.18824192,124.65,124.61,6.82]
[1743569470978,45.81754192,124.65,124.61,6.82]
[1743569471495,45.81754192,124.65,124.6,0.063]
[1743569471803,29.7378,124.65,124.6,6.883]
[1743569473700,9.6817,124.65,124.6,6.883]
[1743569476804,0.03,124.65,124.6,35.10194886]
[1743569478107,0.03,124.65,124.6,16.4523]
[1743569478689,0.03,124.65,124.6,27.07634886]
[1743569479501,0.03,124.65,124.6,25.53264886]
[1743569484606,0.03,124.65,124.6,6.883]
[1743569484985,0.03,124.65,124.61,6.82]
[1743569486401,8.0524,124.65,124.61,6.82]
[1743569487688,28.1085,124.65,124.61,6.82]
[1743569490598,17.63854192,124.65,124.6,0.063]
[1743569490803,16.07974192,124.64,124.6,0.063]
[1743569491116,16.07974192,124.63,124.6,0.063]
[1743569491315,16.07974192,124.61,124.6,0.063]
[1743569491490,37.60854192,124.61,124.6,0.0001]
[1743569492090,62.61691392,124.61,124.6,0.0001]
[1743569492610,70.64191392,124.61,124.6,0.0001]
[1743569493420,18.933972,124.6,124.56,0.063]
[1743569493606,16.07974192,124.57,124.56,0.063]
[1743569495119,24.10734192,124.57,124.56,0.063]
[1743569496117,8.0276,124.57,124.56,0.063]
[1743569498314,24.10734192,124.57,124.56,0.063]
[1743569499717,24.10734192,124.57,124.56,0.0001]
[1743569500300,25.77334192,124.57,124.56,0.0001]
[1743569503023,9.6936,124.57,124.56,0.0001]
[1743569505121,25.77334192,124.57,124.56,0.0001]
[1743569508904,8.0276,124.57,124.56,0.0001]
[1743569512827,24.10734192,124.57,124.56,0.0001]
[1743569513525,8.0276,124.57,124.56,0.0001]
[1743569514530,16.07974192,124.57,124.56,0.0001]
[1743569516733,24.10734192,124.57,124.56,0.0001]
[1743569519216,8.0276,124.57,124.56,0.0001]
[1743569520235,8.0906,124.57,124.56,0.0001]
[1743569526430,24.17034192,124.57,124.56,0.0001]
[1743569527014,43.10431392,124.57,124.56,0.0001]
[1743569529933,109.0457816,124.57,124.56,0.0001]
[1743569530240,109.0457816,124.57,124.52,0.063]
[1743569530241,20.0,124.53,124.52,0.0001]
[1743569530417,16.07974192,124.53,124.52,0.0001]
[1743569530734,20.0,124.52,124.51,0.0001]
[1743569531919,28.0308,124.52,124.51,0.0001]
[1743569533123,44.11054192,124.52,124.51,0.0001]
[1743569533839,8.0308,124.52,124.51,0.0001]
[1743569535241,8.0301,124.53,124.51,0.0001]
[1743569535537,36.15064192,124.56,124.51,0.0001]
[1743569536358,8.0289,124.55,124.51,0.0001]
[1743569536942,24.10864192,124.55,124.51,0.0001]
[1743569537345,8.0289,124.55,124.51,0.0001]
[1743569538847,8.0289,124.55,124.52,6.82]
[1743569541750,28.0991,124.56,124.52,6.82]
[1743569542244,16.07974192,124.55,124.52,6.82]
[1743569543452,44.17884192,124.56,124.52,6.82]
[1743569543752,0.063,124.55,124.52,12.8231]
[1743569550264,8.0919,124.55,124.52,12.8231]
[1743569552359,0.063,124.55,124.52,12.8231]
[1743569553942,0.063,124.55,124.52,20.8537]
[1743569555153,0.063,124.55,124.52,12.8231]
[1743569557172,0.063,124.55,124.53,18.64964886]
[1743569557951,0.063,124.55,124.52,93.6601]
[1743569558457,16.14274192,124.55,124.51,0.0001]
[1743569558660,16.07974192,124.54,124.51,0.0001]
[1743569558866,8.0308,124.52,124.51,0.0001]
[1743569559645,0.063,124.55,124.51,0.0001]
[1743569559845,8.0295,124.54,124.51,0.0001]
[1743569560076,8.0295,124.54,124.52,6.84]
[1743569561168,8.0919,124.55,124.52,6.84]
[1743569561344,0.063,124.55,124.52,6.84]
[1743569561544,0.063,124.55,124.52,14.8707]
[1743569561756,0.063,124.55,124.53,26.1223]
[1743569561952,0.063,124.55,124.54,0.28432314]
[1743569562152,0.063,124.57,124.55,18.64964886]
[1743569562451,0.063,124.57,124.56,6.84]
[1743569564869,0.063,124.57,124.56,25.48964886]
[1743569571064,0.063,124.57,124.56,6.84]
[1743569571266,0.063,124.57,124.56,25.48964886]
[1743569574286,0.063,124.57,124.56,33.802172]
[1743569575391,0.063,124.57,124.56,114.639172]
[1743569591603,0.063,124.57,124.56,106.610972]
[1743569591904,0.063,124.57,124.56,106.590972]
[1743569592809,0.063,124.57,124.56,87.657]
[1743569592973,0.063,124.57,124.56,6.82]
[1743569593174,0.063,124.57,124.55,0.03]
[1743569593377,0.063,124.57,124.56,6.82]
[1743569594289,0.063,124.57,124.56,25.46964886]
[1743569596188,0.063,124.57,124.56,33.782172]
[1743569597719,0.063,124.61,124.59,20.0]
[1743569598002,0.063,124.61,124.6,6.82]
[1743569598188,0.063,124.61,124.6,25.46964886]
[1743569598771,0.063,124.61,124.6,29.50037982]
[1743569599811,0.063,124.61,124.6,110.62170296]
[1743569600015,0.063,124.61,124.6,118.64730296]
[1743569601898,0.063,124.61,124.6,125.1584146]
[1743569605809,9.5754,124.65,124.62,0.28432314]
[1743569606004,9.5754,124.65,124.63,18.64964886]
[1743569606187,9.5754,124.65,124.64,6.82]
[1743569607894,9.5754,124.65,124.62,80.837]
[1743569608215,9.5754,124.65,124.63,6.82]
[1743569610209,29.6315,124.65,124.62,80.837]
[1743569610392,29.6315,124.65,124.63,6.82]
[1743569611399,29.6315,124.65,124.6,18.64964886]
[1743569611708,29.6315,124.65,124.61,6.82]
[1743569611903,45.71124192,124.65,124.58,234.96770612]
[1743569612108,45.71124192,124.65,124.59,6.82]
[1743569614600,29.6315,124.65,124.6,18.64964886]
[1743569620819,29.6315,124.65,124.59,107.657]
[1743569622693,29.6315,124.65,124.59,87.657]
[1743569622896,29.6315,124.65,124.6,6.82]
[1743569629515,16.07974192,124.64,124.6,6.82]
[1743569630029,16.07974192,124.64,124.58,22.62735498]
[1743569630229,28.083,124.63,124.59,6.82]
[1743569630748,28.083,124.63,124.6,0.03]
[1743569632529,20.0593,124.63,124.6,0.03]
[1743569637404,44.16274192,124.63,124.6,0.03]
[1743569637804,16.07974192,124.62,124.6,0.03]
[1743569638039,1.654,124.61,124.6,0.03]
[1743569638332,17.73374192,124.61,124.6,0.03]
[1743569639037,25.75874192,124.61,124.6,0.03]
[1743569640510,9.679,124.61,124.6,0.03]
[1743569644203,25.75874192,124.61,124.6,0.03]
[1743569644410,45.82124192,124.61,124.58,0.03]
[1743569644608,16.07974192,124.6,124.58,0.03]
[1743569645108,8.0263,124.59,124.58,0.03]
[1743569646734,8.0256,124.6,124.58,0.03]
[1743569654144,20.0625,124.61,124.58,0.03]
[1743569655240,20.1255,124.61,124.58,0.03]
[1743569657932,0.063,124.61,124.58,0.03]
[1743569677636,0.063,124.61,124.59,18.64964886]
[1743569677958,0.063,124.61,124.6,31.85114886]
[1743569678954,0.063,124.61,124.6,39.87674886]
[1743569680947,0.063,124.61,124.6,31.85114886]
[1743569681260,0.063,124.61,124.6,13.2015]
[1743569681455,0.063,124.61,124.6,31.85114886]
[1743569684465,0.063,124.61,124.6,60.161072]
[1743569686949,0.03,124.65,124.63,20.0]
[1743569687165,0.03,124.65,124.64,6.82]
[1743569688971,0.03,124.65,124.64,33.49274886]
[1743569689166,0.03,124.65,124.64,53.777072]
[1743569690059,0.063,124.67,124.66,40.0]
[1743569690373,0.063,124.68,124.67,0.28432314]
[1743569691149,0.063,124.68,124.67,8.30542314]
[1743569691467,0.063,124.68,124.67,0.28432314]
[1743569693971,0.063,124.68,124.67,8.30542314]
[1743569699703,0.063,124.68,124.67,0.28432314]
[1743569700383,0.063,124.68,124.67,8.30542314]
[1743569703891,0.063,124.68,124.64,230.88]
[1743569704363,0.063,124.68,124.65,6.82]
[1743569704562,0.063,124.68,124.64,230.88]
[1743569704855,8.0835,124.68,124.65,6.84]
[1743569705557,8.0835,124.68,124.65,6.82]
[1743569706201,28.1348,124.68,124.65,6.82]
[1743569713488,28.1348,124.68,124.62,6.38988693]
[1743569713671,28.1348,124.68,124.63,6.82]
[1743569723428,8.0835,124.68,124.63,6.82]
[1743569725101,8.0835,124.68,124.63,6.883]
[1743569727508,44.21454192,124.68,124.63,6.883]
[1743569737528,28.1348,124.68,124.63,6.883]
[1743569737939,8.0835,124.68,124.63,6.883]
[1743569757447,8.0835,124.68,124.63,6.883]
[1743569760228,8.0835,124.68,124.64,6.82]
[1743569771265,28.1348,124.68,124.64,6.883]
[1743569775665,8.0835,124.68,124.64,6.883]
[1743569779466,0.063,124.68,124.64,6.883]
[1743569780662,0.063,124.68,124.64,14.906]
[1743569782669,0.063,124.68,124.67,20.0]
[1743569782872,0.063,124.68,124.66,6.1385]
[1743569783046,0.063,124.68,124.67,38.933972]
[1743569783249,0.063,124.69,124.67,38.933972]
[1743569783453,0.063,124.69,124.68,6.82]
[1743569784367,0.063,124.69,124.68,25.753972]
[1743569788154,0.063,124.69,124.68,6.82]
[1743569788774,0.063,124.69,124.68,26.82]
[1743569789080,0.063,124.69,124.68,6.82]
[1743569789489,0.063,124.69,124.64,0.063]
[1743569789666,16.14274192,124.69,124.66,6.82]
[1743569789854,16.14274192,124.69,124.65,6.82]
[1743569790878,8.0205,124.68,124.65,6.82]
[1743569795275,8.0205,124.68,124.64,6.883]
[1743569795904,8.0205,124.68,124.65,0.063]
[1743569796583,8.0505,124.68,124.65,0.063]
[1743569806398,0.03,124.68,124.65,0.063]
[1743569822798,0.03,124.68,124.66,6.2699]
[1743569823117,0.03,124.68,124.66,7.7936]
[1743569824518,0.03,124.68,124.66,15.8153]
[1743569825319,0.063,124.69,124.67,38.933972]
[1743569825497,0.063,124.69,124.68,25.753972]
[1743569826714,0.063,124.69,124.68,33.774472]
[1743569827586,0.03,124.73,124.69,45.358872]
[1743569827785,0.03,124.73,124.69,126.195872]
[1743569828811,0.03,124.73,124.7,8.0192]
[1743569829208,0.03,124.73,124.72,38.933972]
[1743569829415,0.03,124.73,124.72,45.753972]
[1743569830019,0.03,124.73,124.72,26.82]
[1743569832014,0.03,124.73,124.72,45.753972]
[1743569832518,0.03,124.73,124.72,49.84316898]
[1743569835924,0.03,124.73,124.72,30.90919698]
[1743569845846,0.03,124.73,124.72,6.82]
[1743569848425,0.03,124.73,124.72,14.8379]
[1743569848948,0.03,124.73,124.72,18.80295709]
[1743569850159,0.03,124.77,124.73,38.933972]
[1743569850327,0.03,124.77,124.73,126.333072]
[1743569851351,0.063,124.78,124.77,18.933972]
[1743569851526,0.063,124.78,124.77,25.753972]
[1743569851730,0.063,124.78,124.76,20.0]
[1743569852050,0.063,124.78,124.77,6.82]